[Event "FIDE WCCC Girls-10 2024"]
[Site "Montesilvano"]
[Date "2024.11.22"]
[Round "7.7"]
[White "Meng, Miranda"]
[Black "Nandinjiguur, Chinzorig"]
[Result "0-1"]
[Annotator "NA RC"]
[ECO "D02"]
[WhiteElo "1675"]
[BlackElo "1807"]
[PlyCount "150"]
[EventDate "2024.11.18"]
[EventType "swiss"]
[EventCountry "ITA"]
[SourceTitle "playchess.com"]
[Source "ChessBase"]
[SourceQuality "1"]
[TimeControl "5400+30"]

1. d4 {[%emt 0:00:03]} d5 {[%emt 0:00:09]} 2. Bf4 {[%emt 0:00:04]} Nf6 {[%emt 0:01:21]} 3. e3 {[%emt 0:00:04]} e6 {[%emt 0:00:54]} 4. Nf3 {[%emt 0:00:09]} Bd6 {[%emt 0:00:32]} 5. Bg3 {[%emt 0:00:07]} O-O {[%emt 0:01:16]} 6. Bd3 {[%emt 0:00:44]} c5 {[%emt 0:00:57]} 7. c3 {[%emt 0:00:19]} Qc7 {[%emt 0:05:44]} 8. Nbd2 {[%emt 0:00:54]} Nbd7 {[%emt 0:02:03]} 9. Rc1 {[%emt 0:10:41]} e5 {[%emt 0:01:52]} 10. dxe5 {[%emt 0:00:41]} Nxe5 {[%emt 0:00:19]} 11. Nxe5 {[%emt 0:00:10]} Bxe5 {[%emt 0:00:08]} 12. Nf3 {[%emt 0:01:33]} Bd6 {[%emt 0:02:21]} 13. Bxd6 {[%emt 0:02:49]} Qxd6 {[%emt 0:00:10]} 14. c4 {[%emt 0:01:09]} dxc4 {[%emt 0:06:51]} 15. Bxh7+ {[%emt 0:05:36]} Nxh7 {[%emt 0:00:46]} 16. Qxd6 {[%emt 0:00:06]} Be6 {[%emt 0:01:00]} 17. Qxc5 {[%emt 0:00:31]} b6 {[%emt 0:01:46]} 18. Qh5 {[%emt 0:01:24]} Rac8 {[%emt 0:01:36]} 19. Nd4 {[%emt 0:02:01]} Rc5 {[%emt 0:01:35]} 20. Qe2 {[%emt 0:00:31]} Bd5 {[%emt 0:02:04]} 21. O-O {[%emt 0:01:13]} Re8 {[%emt 0:01:38]} 22. Qc2 {[%emt 0:02:33]} Ng5 {[%emt 0:01:15]} 23. Rfe1 {[%emt 0:08:19]} Re4 {[%emt 0:08:16]} 24. f3 {[%emt 0:01:56]} Re7 {[%emt 0:00:59]} 25. e4 {[%emt 0:00:35]} Bb7 {[%emt 0:00:56]} 26. Nf5 {[%emt 0:01:15]} Rec7 {[%emt 0:01:55]} 27. Rcd1 {[%emt 0:01:51]} Ne6 {[%emt 0:00:35]} 28. Qf2 {[%emt 0:01:50]} g6 {[%emt 0:02:03]} 29. Nh6+ {[%emt 0:04:14]} Kg7 {[%emt 0:00:29]} 30. Ng4 {[%emt 0:00:24]} Rh5 {[%emt 0:01:45]} 31. g3 {[%emt 0:02:03]} Bc6 {[%emt 0:01:59]} 32. b3 {[%emt 0:01:44]} c3 {[%emt 0:03:37]} 33. Rc1 {[%emt 0:05:00]} Bb7 {[%emt 0:01:59]} 34. f4 {[%emt 0:02:55]} Rcc5 {[%emt 0:01:22]} 35. b4 {[%emt 0:02:20]} Rc4 {[%emt 0:01:16]} 36. f5 {[%emt 0:03:14]} Ng5 {[%emt 0:00:47]} 37. Kf1 {[%emt 0:07:37]} Nxe4 {[%emt 0:01:57]} 38. Qe2 {[%emt 0:10:42]} Nd2+ {[%emt 0:02:20]} 39. Qxd2 {[%emt 0:07:58]} cxd2 {[%emt 0:01:08]} 40. f6+ {[%emt 0:01:11]} Kh7 {[%emt 0:00:39]} 41. Rxc4 {[%emt 0:00:20]} Ba6 {[%emt 0:01:01]} 42. Rd1 {[%emt 0:02:46]} Bxc4+ {[%emt 0:00:17]} 43. Kf2 {[%emt 0:01:45]} Be6 {[%emt 0:02:44]} 44. Ne3 {[%emt 0:01:54]} Rxh2+ {[%emt 0:00:14]} 45. Kf3 {[%emt 0:00:51]} Bxa2 {[%emt 0:04:28]} 46. Nf1 {[%emt 0:01:54]} Rh1 {[%emt 0:01:41]} 47. Kg2 {[%emt 0:01:36]} Bd5+ {[%emt 0:00:31]} 48. Kf2 {[%emt 0:00:10]} Bc4 {[%emt 0:00:33]} 49. Ne3 {[%emt 0:01:00]} Rxd1 {[%emt 0:00:30]} 50. Nxd1 {[%emt 0:00:03]} Bb3 {[%emt 0:00:44]} 51. Ke2 {[%emt 0:00:17]} Bxd1+ {[%emt 0:00:07]} 52. Kxd1 {[%emt 0:00:03]} g5 {[%emt 0:00:38]} 53. b5 {[%emt 0:00:13]} Kg6 {[%emt 0:00:11]} 54. Kxd2 {[%emt 0:00:04]} Kxf6 {[%emt 0:00:08]} 55. Kd3 {[%emt 0:00:11]} Ke5 {[%emt 0:00:10]} 56. Kc4 {[%emt 0:00:21]} f5 {[%emt 0:00:22]} 57. Kd3 {[%emt 0:00:14]} f4 {[%emt 0:00:14]} 58. gxf4+ {[%emt 0:00:10]} gxf4 {[%emt 0:00:08]} 59. Ke2 {[%emt 0:00:07]} Kd4 {[%emt 0:00:17]} 60. Kf3 {[%emt 0:00:05]} Kc5 {[%emt 0:00:08]} 61. Kxf4 {[%emt 0:00:07]} Kxb5 {[%emt 0:00:07]} 62. Ke4 {[%emt 0:00:10]} Kc4 {[%emt 0:00:08]} 63. Ke3 {[%emt 0:00:06]} Kc3 {[%emt 0:00:06]} 64. Ke2 {[%emt 0:00:04]} Kc2 {[%emt 0:00:05]} 65. Ke3 {[%emt 0:00:04]} b5 {[%emt 0:00:10]} 66. Kd4 {[%emt 0:00:04]} b4 {[%emt 0:00:05]} 67. Kc4 {[%emt 0:00:10]} b3 {[%emt 0:00:13]} 68. Kb5 {[%emt 0:00:03]} b2 {[%emt 0:00:10]} 69. Ka6 {[%emt 0:00:03]} b1=Q {[%emt 0:00:09]} 70. Kxa7 {[%emt 0:00:02]} Qb5 {[%emt 0:00:16]} 71. Ka8 {[%emt 0:00:09]} Kc3 {[%emt 0:00:19]} 72. Ka7 {[%emt 0:00:05]} Kc4 {[%emt 0:00:19]} 73. Ka8 {[%emt 0:00:03]} Kc5 {[%emt 0:00:08]} 74. Ka7 {[%emt 0:00:04]} Kc6 {[%emt 0:00:05]} 75. Ka8 {[%emt 0:00:03]} Qb7# {[%emt 0:00:07]} 0-1

[Event "FIDE WCCC Girls-10 2024"]
[Site "Montesilvano"]
[Date "2024.11.22"]
[Round "7.8"]
[White "Peng, Jingyi(Gd)"]
[Black "Khusnitdinova, Husnorakhon"]
[Result "1/2-1/2"]
[Annotator "NA RC"]
[ECO "E09"]
[WhiteElo "1720"]
[BlackElo "1626"]
[PlyCount "100"]
[EventDate "2024.11.18"]
[EventType "swiss"]
[EventCountry "ITA"]
[SourceTitle "playchess.com"]
[Source "ChessBase"]
[SourceQuality "1"]
[TimeControl "5400+30"]

1. Nf3 {[%emt 0:00:03]} d5 {[%emt 0:00:06]} 2. c4 {[%emt 0:00:03]} e6 {[%emt 0:00:05]} 3. g3 {[%emt 0:00:03]} Nf6 {[%emt 0:01:34]} 4. Bg2 {[%emt 0:00:09]} Be7 {[%emt 0:01:00]} 5. O-O {[%emt 0:00:08]} O-O {[%emt 0:00:32]} 6. b3 {[%emt 0:00:17]} c6 {[%emt 0:02:07]} 7. Bb2 {[%emt 0:01:17]} Nbd7 {[%emt 0:00:37]} 8. d4 {[%emt 0:02:31]} b6 {[%emt 0:03:31]} 9. Nbd2 {[%emt 0:00:26]} Bb7 {[%emt 0:01:35]} 10. Qc2 {[%emt 0:00:10]} Rc8 {[%emt 0:03:59]} 11. e4 {[%emt 0:01:05]} dxe4 {[%emt 0:01:17]} 12. Nxe4 {[%emt 0:00:09]} Nxe4 {[%emt 0:00:16]} 13. Qxe4 {[%emt 0:00:05]} Nf6 {[%emt 0:00:08]} 14. Qe2 {[%emt 0:03:26]} Re8 {[%emt 0:04:02]} 15. Rad1 {[%emt 0:01:22]} Qc7 {[%emt 0:01:11]} 16. Ne5 {[%emt 0:00:27]} c5 {[%emt 0:03:34]} 17. d5 {[%emt 0:04:32]} exd5 {[%emt 0:01:17]} 18. cxd5 {[%emt 0:05:19]} Bd6 {[%emt 0:00:20]} 19. f4 {[%emt 0:00:11]} Rcd8 {[%emt 0:09:26]} 20. Qc4 {[%emt 0:07:13]} Nd7 {[%emt 0:05:31]} 21. Nc6 {[%emt 0:05:00]} Ra8 {[%emt 0:06:36]} 22. h4 {[%emt 0:05:04]} Nb8 {[%emt 0:12:16]} 23. Qc3 {[%emt 0:04:00]} f6 {[%emt 0:00:58]} 24. Qf3 {[%emt 0:01:02]} Na6 {[%emt 0:12:17]} 25. h5 {[%emt 0:02:19]} Bc8 {[%emt 0:08:31]} 26. g4 {[%emt 0:06:43]} Qf7 {[%emt 0:01:47]} 27. Qh3 {[%emt 0:20:00]} Re2 {[%emt 0:03:35]} 28. Be5 {[%emt 0:12:42]} Qd7 {[%emt 0:05:11]} 29. Bxd6 {[%emt 0:03:09]} Qxd6 {[%emt 0:00:01]} 30. Rde1 {[%emt 0:07:18]} Rxe1 {[%emt 0:00:22]} 31. Rxe1 {[%emt 0:00:04]} Bd7 {[%emt 0:01:01]} 32. Ne7+ {[%emt 0:02:54]} Kf7 {[%emt 0:01:40]} 33. Ng6 {[%emt 0:02:47]} Re8 {[%emt 0:00:54]} 34. Be4 {[%emt 0:04:58]} Nb4 {[%emt 0:00:56]} 35. Qg3 {[%emt 0:00:29]} c4 {[%emt 0:02:24]} 36. Nh4 {[%emt 0:00:31]} Qc5+ {[%emt 0:00:15]} 37. Kh2 {[%emt 0:00:22]} cxb3 {[%emt 0:01:28]} 38. axb3 {[%emt 0:00:32]} Qd4 {[%emt 0:01:05]} 39. Bf5 {[%emt 0:00:37]} Rxe1 {[%emt 0:01:09]} 40. Qxe1 {[%emt 0:00:05]} Qxf4+ {[%emt 0:00:03]} 41. Kh3 {[%emt 0:00:41]} Bxf5 {[%emt 0:01:34]} 42. gxf5 {[%emt 0:00:23]} Nd3 {[%emt 0:00:46]} 43. Qe6+ {[%emt 0:00:32]} Kf8 {[%emt 0:00:01]} 44. Qc8+ {[%emt 0:00:35]} Ke7 {[%emt 0:01:00]} 45. Qe6+ {[%emt 0:00:37]} Kf8 {[%emt 0:01:42]} 46. Qc8+ {[%emt 0:00:09]} Ke7 {[%emt 0:00:07]} 47. Qe6+ {[%emt 0:00:49]} Kf8 {[%emt 0:00:01]} 48. d6 {[%emt 0:00:37]} Qf1+ {[%emt 0:00:29]} 49. Kh2 {[%emt 0:00:33]} Qf4+ {[%emt 0:01:08]} 50. Kh3 {[%emt 0:00:04]} Qf1+ {[%emt 0:00:07]} 1/2-1/2

[Event "FIDE WCCC Girls-10 2024"]
[Site "Montesilvano"]
[Date "2024.11.22"]
[Round "7.9"]
[White "Malcheva, Niya"]
[Black "Anistoroaei, Maria"]
[Result "0-1"]
[Annotator "NA RC"]
[ECO "C09"]
[WhiteElo "1620"]
[BlackElo "1715"]
[PlyCount "130"]
[EventDate "2024.11.18"]
[EventType "swiss"]
[EventCountry "ITA"]
[SourceTitle "playchess.com"]
[Source "ChessBase"]
[SourceQuality "1"]
[TimeControl "5400+30"]

1. e4 {[%emt 0:00:02]} c5 {[%emt 0:00:05]} 2. c3 {[%emt 0:00:04]} e6 {[%emt 0:00:04]} 3. d4 {[%emt 0:00:06]} d5 {[%emt 0:00:03]} 4. exd5 {[%emt 0:00:16]} exd5 {[%emt 0:00:05]} 5. Bb5+ {[%emt 0:00:24]} Nc6 {[%emt 0:00:05]} 6. Nf3 {[%emt 0:00:55]} Bd6 {[%emt 0:00:06]} 7. dxc5 {[%emt 0:00:26]} Bxc5 {[%emt 0:00:11]} 8. O-O {[%emt 0:00:09]} Nge7 {[%emt 0:00:04]} 9. Nbd2 {[%emt 0:00:24]} O-O {[%emt 0:00:11]} 10. Nb3 {[%emt 0:00:52]} Bd6 {[%emt 0:01:37]} 11. Bg5 {[%emt 0:02:51]} Bg4 {[%emt 0:03:02]} 12. Be2 {[%emt 0:00:20]} Re8 {[%emt 0:02:31]} 13. Nfd4 {[%emt 0:00:36]} Bxe2 {[%emt 0:00:46]} 14. Qxe2 {[%emt 0:01:57]} Qc7 {[%emt 0:06:09]} 15. h3 {[%emt 0:10:40]} Ng6 {[%emt 0:06:25]} 16. Qf3 {[%emt 0:03:40]} Re5 {[%emt 0:11:23]} 17. Be3 {[%emt 0:03:29]} a6 {[%emt 0:02:24]} 18. Rad1 {[%emt 0:03:09]} Na5 {[%emt 0:11:23]} 19. Nxa5 {[%emt 0:06:05]} Qxa5 {[%emt 0:03:57]} 20. a3 {[%emt 0:01:39]} Rae8 {[%emt 0:08:13]} 21. Nf5 {[%emt 0:09:14]} Bf8 {[%emt 0:01:21]} 22. Rd2 {[%emt 0:08:53]} Qb5 {[%emt 0:22:32]} 23. Rfd1 {[%emt 0:08:39]} Rd8 {[%emt 0:07:24]} 24. Nd4 {[%emt 0:02:57]} Qd7 {[%emt 0:02:24]} 25. Nc2 {[%emt 0:02:29]} Rf5 {[%emt 0:07:24]} 26. Qe2 {[%emt 0:00:40]} a5 {[%emt 0:02:32]} 27. Bb6 {[%emt 0:01:01]} Re8 {[%emt 0:00:45]} 28. Qg4 {[%emt 0:02:18]} Ne5 {[%emt 0:00:31]} 29. Rxd5 {[%emt 0:04:13]} Qe6 {[%emt 0:00:49]} 30. Qd4 {[%emt 0:03:38]} Nc6 {[%emt 0:00:29]} 31. Qd2 {[%emt 0:03:07]} Ne5 {[%emt 0:00:27]} 32. Qd4 {[%emt 0:07:46]} Qg6 {[%emt 0:00:29]} 33. Kh1 {[%emt 0:02:48]} Rg5 {[%emt 0:00:35]} 34. Ne3 {[%emt 0:01:22]} Nc6 {[%emt 0:00:30]} 35. Rxg5 {[%emt 0:01:11]} Qxg5 {[%emt 0:00:13]} 36. Qd5 {[%emt 0:02:26]} Re5 {[%emt 0:00:29]} 37. Qf3 {[%emt 0:01:28]} Rb5 {[%emt 0:00:40]} 38. Rd5 {[%emt 0:00:19]} Ne5 {[%emt 0:00:38]} 39. Rxb5 {[%emt 0:01:06]} Nxf3 {[%emt 0:00:12]} 40. Rxg5 {[%emt 0:00:04]} Nxg5 {[%emt 0:00:02]} 41. Bxa5 {[%emt 0:00:07]} Ne4 {[%emt 0:00:56]} 42. Kg1 {[%emt 0:00:17]} Bc5 {[%emt 0:00:38]} 43. Bb4 {[%emt 0:00:30]} Ba7 {[%emt 0:00:27]} 44. Kf1 {[%emt 0:00:17]} g6 {[%emt 0:00:25]} 45. Ke2 {[%emt 0:00:38]} f5 {[%emt 0:00:18]} 46. f3 {[%emt 0:00:12]} Ng3+ {[%emt 0:00:25]} 47. Kd3 {[%emt 0:00:08]} Nh5 {[%emt 0:00:36]} 48. Nd5 {[%emt 0:00:30]} Kf7 {[%emt 0:00:42]} 49. Kc4 {[%emt 0:01:07]} Ke6 {[%emt 0:00:26]} 50. g4 {[%emt 0:01:06]} fxg4 {[%emt 0:00:47]} 51. fxg4 {[%emt 0:00:06]} Ng3 {[%emt 0:00:20]} 52. Nc7+ {[%emt 0:00:17]} Kf6 {[%emt 0:00:31]} 53. Nb5 {[%emt 0:00:44]} Bf2 {[%emt 0:00:15]} 54. Bc5 {[%emt 0:00:33]} Ne4 {[%emt 0:01:02]} 55. Bxf2 {[%emt 0:00:53]} Nxf2 {[%emt 0:00:07]} 56. Nd6 {[%emt 0:00:05]} Nxh3 {[%emt 0:00:46]} 57. Nxb7 {[%emt 0:00:04]} h5 {[%emt 0:00:34]} 58. gxh5 {[%emt 0:00:07]} gxh5 {[%emt 0:00:05]} 59. a4 {[%emt 0:00:04]} h4 {[%emt 0:00:25]} 60. Nc5 {[%emt 0:00:28]} Nf2 {[%emt 0:00:33]} 61. Nd7+ {[%emt 0:00:52]} Kf5 {[%emt 0:00:15]} 62. a5 {[%emt 0:08:42]} h3 {[%emt 0:00:12]} 63. a6 {[%emt 0:00:00]} h2 {[%emt 0:00:13]} 64. a7 {[%emt 0:00:00]} h1=Q {[%emt 0:00:29]} 65. Nb6 {[%emt 0:00:00]} Qc6+ {[%emt 0:00:22]} 0-1

[Event "FIDE WCCC Girls-10 2024"]
[Site "Montesilvano"]
[Date "2024.11.22"]
[Round "7.10"]
[White "Shtepa, Liubov"]
[Black "Bhavanya Panchumarthi"]
[Result "1-0"]
[Annotator "NA RC"]
[ECO "B13"]
[WhiteElo "1615"]
[BlackElo "1703"]
[PlyCount "117"]
[EventDate "2024.11.18"]
[EventType "swiss"]
[EventCountry "ITA"]
[SourceTitle "playchess.com"]
[Source "ChessBase"]
[SourceQuality "1"]
[TimeControl "5400+30"]

1. e4 {[%emt 0:00:17]} c6 {[%emt 0:00:13]} 2. d4 {[%emt 0:00:04]} d5 {[%emt 0:00:14]} 3. exd5 {[%emt 0:00:06]} cxd5 {[%emt 0:00:05]} 4. Bd3 {[%emt 0:00:02]} Nf6 {[%emt 0:00:57]} 5. c3 {[%emt 0:00:07]} Bg4 {[%emt 0:01:20]} 6. Qb3 {[%emt 0:00:10]} Qc8 {[%emt 0:00:58]} 7. h3 {[%emt 0:00:15]} Bd7 {[%emt 0:03:29]} 8. Bf4 {[%emt 0:00:31]} e6 {[%emt 0:01:15]} 9. Nf3 {[%emt 0:00:23]} Nc6 {[%emt 0:00:19]} 10. O-O {[%emt 0:02:35]} Be7 {[%emt 0:00:53]} 11. Nbd2 {[%emt 0:01:08]} O-O {[%emt 0:00:53]} 12. Rfe1 {[%emt 0:03:13]} Na5 {[%emt 0:02:40]} 13. Qc2 {[%emt 0:01:43]} b5 {[%emt 0:01:30]} 14. Ne5 {[%emt 0:00:59]} Nc4 {[%emt 0:09:31]} 15. Nxd7 {[%emt 0:04:22]} Qxd7 {[%emt 0:01:27]} 16. Nf3 {[%emt 0:01:07]} h5 {[%emt 0:11:30]} 17. Qe2 {[%emt 0:07:39]} g6 {[%emt 0:06:00]} 18. Ne5 {[%emt 0:02:10]} Qc8 {[%emt 0:15:54]} 19. Bh6 {[%emt 0:21:22]} Rd8 {[%emt 0:03:17]} 20. Qc2 {[%emt 0:11:16]} Nxe5 {[%emt 0:21:28]} 21. dxe5 {[%emt 0:00:18]} Ne4 {[%emt 0:00:36]} 22. Bxe4 {[%emt 0:01:33]} dxe4 {[%emt 0:00:32]} 23. Qxe4 {[%emt 0:00:13]} Kh7 {[%emt 0:00:57]} 24. Be3 {[%emt 0:01:07]} Kg7 {[%emt 0:00:35]} 25. Rad1 {[%emt 0:00:45]} Qc7 {[%emt 0:00:51]} 26. Bd4 {[%emt 0:05:21]} a5 {[%emt 0:05:13]} 27. a3 {[%emt 0:35:14]} Rd5 {[%emt 0:02:57]} 28. Qe3 {[%emt 0:00:00]} Qd7 {[%emt 0:00:51]} 29. Rd2 {[%emt 0:00:00]} Rd8 {[%emt 0:01:49]} 30. Red1 {[%emt 0:00:00]} Bc5 {[%emt 0:01:39]} 31. Qf4 {[%emt 0:00:00]} Kg8 {[%emt 0:01:46]} 32. Be3 {[%emt 0:00:00]} Bxe3 {[%emt 0:01:04]} 33. Rxd5 {[%emt 0:00:00]} Bxf2+ {[%emt 0:00:15]} 34. Qxf2 {[%emt 0:00:00]} exd5 {[%emt 0:00:16]} 35. Qb6 {[%emt 0:00:00]} Re8 {[%emt 0:01:09]} 36. Qd6 {[%emt 0:00:00]} Qxd6 {[%emt 0:02:37]} 37. exd6 {[%emt 0:00:00]} Kf8 {[%emt 0:00:14]} 38. Rxd5 {[%emt 0:00:00]} Rb8 {[%emt 0:00:09]} 39. d7 {[%emt 0:00:00]} Ke7 {[%emt 0:00:09]} 40. Kf2 {[%emt 0:00:00]} b4 {[%emt 0:00:38]} 41. cxb4 {[%emt 0:00:00]} axb4 {[%emt 0:00:06]} 42. axb4 {[%emt 0:00:00]} Kd8 {[%emt 0:01:14]} 43. Rd4 {[%emt 0:00:00]} Rb5 {[%emt 0:00:25]} 44. Ke3 {[%emt 0:00:00]} Rg5 {[%emt 0:00:22]} 45. g4 {[%emt 0:00:00]} hxg4 {[%emt 0:00:31]} 46. hxg4 {[%emt 0:00:00]} f5 {[%emt 0:00:30]} 47. gxf5 {[%emt 0:00:00]} Rxf5 {[%emt 0:01:12]} 48. Ke4 {[%emt 0:00:00]} Rf2 {[%emt 0:00:29]} 49. Ke5 {[%emt 0:00:00]} Rxb2 {[%emt 0:00:33]} 50. Kd6 {[%emt 0:00:00]} Rb1 {[%emt 0:01:01]} 51. Kc6 {[%emt 0:00:00]} Rc1+ {[%emt 0:00:10]} 52. Kb6 {[%emt 0:00:00]} Rc7 {[%emt 0:01:01]} 53. b5 {[%emt 0:00:00]} Rxd7 {[%emt 0:00:04]} 54. Rxd7+ {[%emt 0:00:00]} Kxd7 {[%emt 0:00:05]} 55. Ka7 {[%emt 0:00:00]} g5 {[%emt 0:00:19]} 56. b6 {[%emt 0:00:00]} g4 {[%emt 0:00:06]} 57. b7 {[%emt 0:00:05]} g3 {[%emt 0:00:04]} 58. b8=Q {[%emt 0:00:05]} g2 {[%emt 0:00:24]} 59. Qg8 {[%emt 0:00:10]} 1-0

[Event "FIDE WCCC Girls-10 2024"]
[Site "Montesilvano"]
[Date "2024.11.22"]
[Round "7.11"]
[White "Wang, Yi Xuan"]
[Black "Norkulova, Malika"]
[Result "1-0"]
[Annotator "NA RC"]
[ECO "D31"]
[WhiteElo "1668"]
[BlackElo "1480"]
[PlyCount "45"]
[EventDate "2024.11.18"]
[EventType "swiss"]
[EventCountry "ITA"]
[SourceTitle "playchess.com"]
[Source "ChessBase"]
[SourceQuality "1"]
[TimeControl "5400+30"]

1. d4 {[%emt 0:00:03]} d5 {[%emt 0:05:32]} 2. c4 {[%emt 0:00:41]} e6 {[%emt 0:00:09]} 3. Nc3 {[%emt 0:00:36]} c6 {[%emt 0:00:08]} 4. e4 {[%emt 0:01:07]} dxe4 {[%emt 0:03:10]} 5. Nxe4 {[%emt 0:00:23]} Bb4+ {[%emt 0:00:07]} 6. Bd2 {[%emt 0:00:35]} Qd7 7. d5 Qxd5 8. Bxb4 Qxe4+ 9. Be2 Qxg2 10. Bf3 Qg5 11. Ne2 Nd7 12. Rg1 Qf6 13. Bc3 e5 14. Ng3 g6 15. Ne4 Qe7 16. Nd6+ Kf8 17. Qd2 c5 18. O-O-O Ndf6 19. Rge1 Be6 20. Bxe5 Rd8 21. Qc3 Kg7 22. Nxb7 Rxd1+ 23. Rxd1 {[%emt 0:08:30]} 1-0

[Event "FIDE WCCC Girls-10 2024"]
[Site "Montesilvano"]
[Date "2024.11.22"]
[Round "7.12"]
[White "Artemenko, Isabella"]
[Black "Yi, Ruiyu"]
[Result "1/2-1/2"]
[Annotator "NA RC"]
[ECO "B24"]
[WhiteElo "1637"]
[BlackElo "1571"]
[PlyCount "156"]
[EventDate "2024.11.18"]
[EventType "swiss"]
[EventCountry "ITA"]
[SourceTitle "playchess.com"]
[Source "ChessBase"]
[SourceQuality "1"]
[TimeControl "5400+30"]

1. e4 {[%emt 0:00:02]} c5 {[%emt 0:00:15]} 2. Nc3 {[%emt 0:00:05]} Nc6 {[%emt 0:00:06]} 3. g3 {[%emt 0:00:11]} e6 {[%emt 0:00:08]} 4. Bg2 {[%emt 0:00:07]} Nf6 {[%emt 0:00:32]} 5. d3 {[%emt 0:00:08]} Be7 {[%emt 0:00:07]} 6. f4 {[%emt 0:00:08]} d5 {[%emt 0:00:27]} 7. e5 {[%emt 0:01:35]} Ng8 {[%emt 0:00:12]} 8. Nf3 {[%emt 1:32:14]} h5 {[%emt 0:00:23]} 9. h3 {[%emt 0:00:00]} Nh6 {[%emt 0:01:18]} 10. Ne2 {[%emt 0:00:00]} Nf5 {[%emt 1:32:02]} 11. Bd2 {[%emt 0:00:00]} b5 {[%emt 0:00:00]} 12. a3 {[%emt 0:00:00]} a5 {[%emt 0:00:00]} 13. Nh2 {[%emt 0:00:00]} Qb6 {[%emt 0:00:00]} 14. c3 {[%emt 0:00:00]} Ba6 {[%emt 0:00:00]} 15. Qc2 {[%emt 0:00:00]} b4 {[%emt 0:00:00]} 16. Nf1 {[%emt 0:00:00]} f6 {[%emt 0:00:00]} 17. exf6 {[%emt 0:00:00]} Bxf6 {[%emt 0:00:00]} 18. Ne3 {[%emt 0:00:00]} c4 {[%emt 0:00:00]} 19. d4 {[%emt 0:00:00]} Nxe3 {[%emt 0:00:00]} 20. Bxe3 {[%emt 0:00:00]} O-O-O {[%emt 0:00:00]} 21. axb4 {[%emt 0:00:00]} axb4 {[%emt 0:00:00]} 22. Kf2 {[%emt 0:00:00]} b3 {[%emt 0:00:00]} 23. Qd2 {[%emt 0:00:00]} Rhf8 {[%emt 0:00:00]} 24. Bf3 {[%emt 0:00:00]} g6 {[%emt 0:00:00]} 25. Kg2 {[%emt 0:00:00]} Ne7 {[%emt 0:00:00]} 26. Ra3 {[%emt 0:00:00]} Kb7 {[%emt 0:00:00]} 27. Rha1 {[%emt 0:00:00]} Ra8 {[%emt 0:00:00]} 28. Bf2 {[%emt 0:00:00]} Nf5 {[%emt 0:00:00]} 29. Ng1 {[%emt 0:00:00]} Bb5 {[%emt 0:00:00]} 30. Qc1 {[%emt 0:00:00]} Nd6 {[%emt 0:00:00]} 31. Qe1 {[%emt 0:00:00]} Bd7 {[%emt 0:00:00]} 32. Rxa8 {[%emt 0:00:17]} Rxa8 {[%emt 0:00:00]} 33. Rxa8 {[%emt 0:12:13]} Kxa8 {[%emt 0:00:00]} 34. Qa1+ {[%emt 0:00:00]} Qa7 {[%emt 0:00:00]} 35. Qxa7+ {[%emt 0:00:00]} Kxa7 {[%emt 0:00:00]} 36. Be3 {[%emt 0:00:00]} Nb5 {[%emt 0:00:00]} 37. Ne2 {[%emt 0:00:00]} Be7 {[%emt 0:00:00]} 38. Bc1 {[%emt 0:00:00]} Kb7 {[%emt 0:00:00]} 39. f5 {[%emt 0:00:00]} exf5 {[%emt 0:00:00]} 40. Bxd5+ {[%emt 0:00:00]} Bc6 {[%emt 0:00:00]} 41. Bxc6+ {[%emt 0:00:00]} Kxc6 {[%emt 0:00:00]} 42. Kf3 {[%emt 0:00:00]} g5 {[%emt 0:00:00]} 43. Ng1 {[%emt 0:00:00]} Nc7 {[%emt 0:00:00]} 44. h4 {[%emt 0:01:45]} gxh4 {[%emt 0:00:00]} 45. gxh4 {[%emt 0:00:05]} Nd5 {[%emt 0:00:00]} 46. Kg3 {[%emt 0:00:52]} Bd6+ {[%emt 0:00:00]} 47. Kf3 {[%emt 0:00:14]} Be7 {[%emt 0:00:20]} 48. Kg3 {[%emt 0:00:23]} f4+ {[%emt 0:01:02]} 49. Kh3 {[%emt 0:02:28]} Ne3 {[%emt 0:01:05]} 50. Nf3 {[%emt 0:00:49]} Kd5 {[%emt 0:00:34]} 51. Ng5 {[%emt 0:00:18]} Bxg5 {[%emt 0:02:52]} 52. hxg5 {[%emt 0:00:06]} Ke4 {[%emt 0:00:03]} 53. g6 {[%emt 0:00:36]} Nf5 {[%emt 0:00:10]} 54. d5 {[%emt 0:00:24]} Kxd5 {[%emt 0:00:54]} 55. Bxf4 {[%emt 0:00:05]} Ke4 {[%emt 0:00:42]} 56. Bd6 {[%emt 0:00:45]} Kd3 {[%emt 0:03:07]} 57. Ba3 {[%emt 0:00:35]} Ke4 {[%emt 0:04:36]} 58. Bf8 {[%emt 0:00:19]} Kd3 {[%emt 0:00:24]} 59. Ba3 {[%emt 0:00:14]} Kc2 {[%emt 0:02:14]} 60. Kh2 {[%emt 0:00:31]} Kd3 {[%emt 0:01:12]} 61. Kg1 {[%emt 0:00:54]} Ke4 {[%emt 0:01:11]} 62. Bf8 {[%emt 0:00:30]} Kf4 {[%emt 0:00:49]} 63. g7 {[%emt 0:00:22]} Nh6 {[%emt 0:00:12]} 64. Kg2 {[%emt 0:00:36]} Kg4 {[%emt 0:00:23]} 65. Kh2 {[%emt 0:01:10]} h4 {[%emt 0:00:47]} 66. Kg2 {[%emt 0:00:44]} h3+ {[%emt 0:00:26]} 67. Kh2 {[%emt 0:00:08]} Ng8 {[%emt 0:00:21]} 68. Bd6 {[%emt 0:00:18]} Kh4 {[%emt 0:00:30]} 69. Bf8 {[%emt 0:00:18]} Kg4 {[%emt 0:00:40]} 70. Ba3 {[%emt 0:00:10]} Nf6 {[%emt 0:00:30]} 71. Be7 {[%emt 0:00:21]} Ng8 {[%emt 0:00:08]} 72. Bf8 {[%emt 0:00:17]} Nf6 {[%emt 0:00:13]} 73. Bc5 {[%emt 0:00:49]} Ng8 {[%emt 0:00:09]} 74. Bf8 {[%emt 0:01:05]} Kh4 {[%emt 0:00:18]} 75. Bd6 {[%emt 0:00:23]} Nh6 {[%emt 0:00:12]} 76. Be7+ {[%emt 0:00:23]} Kg4 {[%emt 0:00:23]} 77. Bf8 {[%emt 0:01:04]} Ng8 {[%emt 0:00:10]} 78. Bd6 {[%emt 0:00:32]} Nf6 {[%emt 0:00:19]} 1/2-1/2